fUST/lending_fUST_20251107
["ID","MTS","AMOUNT","RATE_DAILY","PERIOD"]
[393314897,1762456249434,-153.0,0.00016457,2]
[393314898,1762456249444,-153.0,0.00016457,2]
[393314899,1762456249453,-153.0,0.00016457,2]
[393314900,1762456249463,-153.0,0.00016457,2]
[393314901,1762456249472,-153.0,0.00016457,2]
[393314902,1762456249481,-153.0,0.00016457,2]
[393314903,1762456249491,-153.0,0.00016457,2]
[393314904,1762456249500,-153.0,0.00016457,2]
[393314905,1762456249510,-577.20082902,0.00016473,2]
[393314906,1762456249520,-158.95468177,0.00016473,2]
[393314907,1762456249529,-503.11331673,0.00016473,2]
[393314908,1762456249540,-599.30967986,0.00016473,2]
[393314909,1762456249551,-500.0,0.00016473,2]
[393314910,1762456249563,-501.65620951,0.00016473,2]
[393314911,1762456249576,-366.12524074,0.0001648,2]
[393314912,1762456249591,-177.0,0.00016514,2]
[393314913,1762456249605,-160.0,0.00016566,2]
[393314914,1762456249618,-916.93770577,0.00016597,2]
[393314915,1762456249634,-151.0,0.000166,2]
[393314916,1762456249648,-2000.0,0.00016716,2]
[393314917,1762456249661,-508.91431809,0.00016716,2]
[393314918,1762456249674,-500.0,0.00016716,2]
[393314919,1762456249685,-500.0,0.00016716,2]
[393314920,1762456249696,-2000.0,0.00016716,2]
[393314921,1762456249708,-230.65063454,0.00016735,2]
[393314922,1762456249718,-500.0,0.00016755,2]
[393314923,1762456249728,-500.0,0.00016755,2]
[393314924,1762456249738,-822.29606492,0.00016764,2]
[393314925,1762456249748,-2423.37323163,0.00016764,2]
[393314926,1762456249758,-5159.86101795,0.00016869,2]
[393314927,1762456249768,-230.65063454,0.00016891,2]
[393314928,1762456249778,-579.69294882,0.00016973,2]
[393314929,1762456249788,-500.0,0.00016973,2]
[393314930,1762456249798,-334.30574845,0.00016973,2]
[393314931,1762456249807,-239.37976358,0.00016973,2]
[393314932,1762456249818,-500.0,0.00016973,2]
[393314933,1762456249827,-16264.6925077,0.00017009,2]
[393314934,1762456249838,-1000.0,0.00017021,2]
[393314935,1762456249848,-230.65063454,0.00017048,2]
[393314936,1762456249857,-5797.77154246,0.00017056,2]
[393314937,1762456249867,-260.0,0.00017114,2]
[393314938,1762456249877,-230.65063454,0.00017205,2]
[393314939,1762456249886,-2500.0,0.00017264,2]
[393314940,1762456249896,-2500.0,0.00017264,2]
[393314941,1762456249905,-1025.10377562,0.00017302,2]
[393314942,1762456249914,-505.79762792,0.00017302,2]
[393314943,1762456249924,-230.88128518,0.00017362,2]
[393314944,1762456249933,-3629.143444,0.00017436,2]
[393314945,1762456249944,-669.43231597,0.00017521,2]
[393314946,1762456249954,-1480.75115738,0.00017568,2]
[393314947,1762456249963,-360.0,0.00017662,2]
[393314948,1762456249973,-221.47,0.00017711,2]
[393314949,1762456249985,-3000.0,0.00017812,2]
[393314950,1762456250002,-3000.0,0.00017812,2]
[393314951,1762456250012,-1913.68750627,0.0001785,2]
[393314952,1762456250022,-474.45027444,0.0001796,2]
[393314953,1762456250031,-501.54570401,0.00017973,2]
[393314954,1762456250040,-595.92,0.00017999,2]
[393314955,1762456250050,-15973.59807451,0.00018,2]
[393314956,1762456250059,-151.0,0.00018,2]
[393314957,1762456250069,-1630.11147692,0.00018073,2]
[393314958,1762456250079,-539.37368425,0.00018078,2]
[393314959,1762456250089,-219.57393652,0.00018154,3]
[393314960,1762456250099,-265.99983843,0.00018168,2]
[393314961,1762456250107,-580.0,0.0001821,2]
[393314962,1762456250117,-202.10360278,0.0001836,2]
[393314963,1762456250126,-207.15888292,0.00018376,2]
[393314964,1762456250136,-204.0,0.00018514,2]
[393314965,1762456250146,-303.69581554,0.00018522,2]
[393314966,1762456250155,-502.1998434,0.00018651,2]
[393314967,1762456250165,-307.92399862,0.00018712,2]
[393314968,1762456250175,-336.5469143,0.00018797,2]
[393314969,1762456250184,-507.18647553,0.00018798,2]
[393314970,1762456250194,-243.95228294,0.00018961,2]
[393314971,1762456250203,-500.0,0.00019178,2]
[393314972,1762456250212,-500.0,0.00019178,2]
[393314973,1762456250221,-269.6213378,0.00019178,2]
[393314974,1762456250231,-371.832181,0.00019178,2]
[393314975,1762456250240,-371.832181,0.00019178,2]
[393314976,1762456250249,-371.832181,0.00019178,2]
[393314977,1762456250258,-371.832181,0.00019178,2]
[393314978,1762456250268,-371.832181,0.00019178,2]
[393314979,1762456250279,-371.832181,0.00019178,2]
[393314980,1762456250299,-371.832181,0.00019178,2]
[393314981,1762456250321,-371.832181,0.00019178,2]
[393314982,1762456250330,-371.832181,0.00019178,2]
[393314983,1762456250341,-371.832181,0.00019178,2]
[393314984,1762456250350,-371.832181,0.00019178,2]
[393314985,1762456250360,-371.832181,0.00019178,2]
[393314986,1762456250369,-371.832181,0.00019178,2]
[393314987,1762456250379,-371.832181,0.00019178,2]
[393314988,1762456250390,-371.832181,0.00019178,2]
[393314989,1762456250400,-371.832181,0.00019178,2]
[393314990,1762456250409,-371.832181,0.00019178,2]
[393314991,1762456250418,-371.832181,0.00019178,2]
[393314992,1762456250428,-371.832181,0.00019178,2]
[393314993,1762456250439,-371.832185,0.00019178,2]
[393314994,1762456250448,-150.0,0.00019178,2]
[393314995,1762456250458,-332.2,0.00019187,2]
[393314996,1762456250467,-155.77756144,0.00019315,2]
[393314997,1762456250476,-151.0,0.000194,2]
[393314998,1762456250485,-500.0,0.00019486,2]
[393314999,1762456250494,-407.9006749,0.00019486,2]
[393315000,1762456250503,-5797.77154246,0.00019612,2]
[393315001,1762456250512,-312.0,0.0001997,2]
[393315002,1762456250521,-202.32,0.00019999,2]
[393315003,1762456250530,-2067.59245079,0.0002,2]
[393315004,1762456250540,-1951.16900746,0.0002,20]
[393315005,1762456250549,-273.56007506,0.0002,14]
[393315006,1762456250559,-2979.0,0.0002,2]
[393315007,1762456250568,-1000.0,0.00020034,2]
[393315008,1762456250577,-930.355907,0.00020187,2]
[393315009,1762456250586,-1906.0981991,0.00020225,2]
[393315010,1762456250596,-231.0,0.00020514,2]
[393315011,1762456250605,-401.81211073,0.0002053,3]
[393315012,1762456250616,-401.67454916,0.0002053,3]
[393315013,1762456250624,-1478.617325,0.00020548,2]
[393315014,1762456250635,-151.0,0.00020548,7]
[393315015,1762456250644,-172.472403,0.00020548,7]
[393315016,1762456250654,-505.02179154,0.00020582,2]
[393315017,1762456250664,-151.0,0.000206,3]
[393315018,1762456250673,-442.94,0.00020663,2]
[393315019,1762456250682,-151.0,0.000208,3]
[393315020,1762456250692,-3155.58048498,0.0002129,2]
[393315021,1762456250701,-938.75293482,0.0002129,2]
[393315022,1762456250710,-151.0,0.000215,3]
[393315023,1762456250719,-151.0,0.00021918,7]
[393315024,1762456250728,-150.0,0.00021918,2]
[393315025,1762456250737,-539.37368425,0.00021931,3]
[393315026,1762456250747,-433.35,0.00022,7]
[393315027,1762456250757,-553.67,0.00022139,2]
[393315028,1762456250766,-5797.77154246,0.00022168,2]
[393315029,1762456250776,-151.0,0.000222,8]
[393315030,1762456250785,-151.0,0.000223,7]
[393315031,1762456250795,-300.0,0.00022466,2]
[393315032,1762456250804,-258.0,0.00022514,2]
[393315033,1762456250814,-265.72100682,0.00023,3]
[393315034,1762456250823,-151.06327853,0.00023014,2]
[393315035,1762456250833,-151.0,0.000232,6]
[393315036,1762456250845,-151.0,0.00023288,7]
[393315037,1762456250854,-151.0,0.00023288,7]
[393315038,1762456250863,-151.0,0.00023288,7]
[393315039,1762456250873,-215.518216,0.00023288,7]
[393315040,1762456250882,-542.085339,0.00023288,7]
[393315041,1762456250891,-542.085339,0.00023288,7]
[393315042,1762456250900,-542.085339,0.00023288,7]
[393315043,1762456250909,-542.085339,0.00023288,7]
[393315044,1762456250919,-542.085339,0.00023288,7]
[393315045,1762456250929,-542.085339,0.00023288,7]
[393315046,1762456250938,-542.085339,0.00023288,7]
[393315047,1762456250947,-542.085339,0.00023288,7]
[393315048,1762456250956,-542.085339,0.00023288,7]
[393315049,1762456250965,-542.085339,0.00023288,7]
[393315050,1762456250974,-542.085339,0.00023288,7]
[393315051,1762456250983,-542.085339,0.00023288,7]
[393315052,1762456250993,-542.085339,0.00023288,7]
[393315053,1762456251001,-542.085339,0.00023288,7]
[393315054,1762456251011,-542.085339,0.00023288,7]
[393315055,1762456251020,-542.085339,0.00023288,7]
[393315056,1762456251030,-542.085339,0.00023288,7]
[393315057,1762456251040,-542.085339,0.00023288,7]
[393315058,1762456251049,-542.085339,0.00023288,7]
[393315059,1762456251060,-542.085334,0.00023288,7]
[393315060,1762456251069,-301.999999,0.00023288,7]
[393315061,1762456251078,-238.390307,0.00023288,7]
[393315062,1762456251089,-238.390307,0.00023288,7]
[393315063,1762456251099,-238.390307,0.00023288,7]
[393315064,1762456251108,-238.390307,0.00023288,7]
[393315065,1762456251117,-238.390307,0.00023288,7]
[393315066,1762456251126,-238.390307,0.00023288,7]
[393315067,1762456251136,-238.390307,0.00023288,7]
[393315068,1762456251145,-238.390307,0.00023288,7]
[393315069,1762456251154,-238.390307,0.00023288,7]
[393315070,1762456251164,-238.390307,0.00023288,7]
[393315071,1762456251173,-238.390307,0.00023288,7]
[393315072,1762456251183,-238.390307,0.00023288,7]
[393315073,1762456251192,-238.390307,0.00023288,7]
[393315074,1762456251201,-238.390307,0.00023288,7]
[393315075,1762456251210,-238.390307,0.00023288,7]
[393315076,1762456251219,-238.390307,0.00023288,7]
[393315077,1762456251229,-238.390307,0.00023288,7]
[393315078,1762456251238,-238.390307,0.00023288,7]
[393315079,1762456251248,-238.390307,0.00023288,7]
[393315080,1762456251257,-238.390298,0.00023288,7]
[393315081,1762456251266,-151.0,0.00023288,7]
[393315082,1762456251275,-151.0,0.00023288,2]
[393315083,1762456251284,-151.0,0.00023288,7]
[393315084,1762456251293,-151.0,0.00023288,2]
[393315085,1762456251306,-151.0,0.00023288,7]
[393315086,1762456251315,-151.0,0.00023288,2]
[393315087,1762456251324,-151.0,0.00023288,7]
[393315088,1762456251334,-151.0,0.00023288,2]
[393315089,1762456251344,-151.0,0.00023288,2]
[393315090,1762456251354,-151.0,0.00023288,7]
[393315091,1762456251370,-151.0,0.00023288,7]
[393315092,1762456251381,-151.0,0.00023288,7]
[393315093,1762456251391,-151.0,0.00023288,7]
[393315094,1762456251400,-151.0,0.00023288,7]
[393315095,1762456251410,-151.0,0.00023288,7]
[393315096,1762456251419,-151.0,0.00023288,7]
[393315097,1762456251429,-151.0,0.00023288,7]
[393315098,1762456251439,-151.0,0.00023288,7]
[393315099,1762456251448,-151.0,0.00023288,7]
[393315100,1762456251458,-151.0,0.00023288,7]
[393315101,1762456251467,-151.0,0.00023288,7]
[393315102,1762456251477,-151.0,0.00023288,7]
[393315103,1762456251487,-151.0,0.00023288,7]
[393315104,1762456251496,-260.455867,0.00023288,7]
[393315105,1762456251505,-151.0,0.000236,6]
[393315106,1762456251514,-500.0,0.00023606,2]
[393315107,1762456251523,-500.0,0.00023606,2]
[393315108,1762456251533,-500.67658786,0.00023606,2]
[393315109,1762456251543,-501.85812143,0.00023606,2]
[393315110,1762456251552,-500.0,0.00023606,2]
[393315111,1762456251561,-664.4,0.00023615,2]
[393315112,1762456251571,-627.0,0.00023957,2]
[393315113,1762456251580,-4394.0,0.00023962,2]
[393315114,1762456251590,-151.0,0.00024,7]
[393315115,1762456251599,-151.0,0.00024,9]
[393315116,1762456251609,-1000.0,0.00024154,2]
[393315117,1762456251618,-218.24908621,0.00024154,2]
[393315118,1762456251627,-285.0,0.00024514,2]
[393315119,1762456251715,-1504.07266439,0.00024702,2]
[393315120,1762456251724,-5797.77154246,0.00024724,2]
[393315121,1762456251734,-9563.29852128,0.000248,2]
[393315122,1762456251743,-160.0,0.00024814,2]
[393315123,1762456251752,-796.94154344,0.0002484,2]
[393315124,1762456251761,-401.81211073,0.0002485,4]
[393315125,1762456251771,-401.67454916,0.0002485,4]
[393315126,1762456251780,-2163.0,0.00024876,2]
[393315127,1762456251788,-243331.33499857,0.000249,2]
[393315128,1762456251844,-19968.96273298,0.000249,2]
[393315129,1762456251855,-991.5,0.000249,2]
[393315130,1762456251871,-501.05,0.000249,2]
[393315131,1762456251882,-768.28,0.000249,2]
[393315137,1762456352836,158.4648056,0.00014454,2]
[393315139,1762456478845,3772.30501298,0.00014453,2]
[393315140,1762456594938,999.0,0.00013552,2]
[393315145,1762456719136,3300.76688641,0.00014452,2]
[393315149,1762456954616,2888.1710256,0.00014449,2]
[393315150,1762457097029,9939.61,0.00037208,60]
[393315151,1762457097398,9939.61,0.00037208,60]
[393315152,1762457097769,9939.61,0.00037208,60]
[393315153,1762457098159,9939.61,0.00037208,60]
[393315154,1762457098600,9939.61,0.00037208,60]
[393315155,1762457098971,9939.61,0.00037208,60]
[393315156,1762457099373,9939.61,0.00037208,60]
[393315157,1762457099759,9939.61,0.00037208,60]
[393315158,1762457100168,9939.61,0.00037208,60]
[393315159,1762457100581,9939.61,0.00037208,60]
[393315160,1762457100947,9939.61,0.00037208,60]
[393315161,1762457101404,9939.61,0.00037208,60]
[393315162,1762457101825,9939.61,0.00037208,60]
[393315163,1762457102138,9939.61,0.00037208,60]
[393315164,1762457102507,9939.61,0.00037208,60]
[393315165,1762457102893,9939.61,0.00037208,120]
[393315166,1762457103274,9939.61,0.00037208,120]
[393315167,1762457103753,9939.61,0.00037208,120]
[393315168,1762457104121,9939.61,0.00037208,120]
[393315169,1762457104559,9939.61,0.00037208,120]
[393315170,1762457104950,9939.61,0.00037208,120]
[393315171,1762457105347,9939.61,0.00037208,120]
[393315172,1762457105722,9939.61,0.00037208,120]
[393315173,1762457106140,9939.6111895,0.00037208,120]
[393315175,1762457128250,158.4648056,0.00014446,2]
[393315176,1762457194819,2527.1496474,0.0001445,2]
[393315181,1762457276972,882.748661,0.00013699,2]
[393315191,1762457430117,2211.25594144,0.00014473,2]
[393315215,1762457432072,-389.26231776,0.00014544,2]
[393315216,1762457432082,-300.0,0.00014544,2]
[393315218,1762457432092,-188.8181455,0.00014544,2]
[393315259,1762457438106,-500.0,0.00014544,2]
[393315261,1762457438116,-500.0,0.00014544,2]
[393315263,1762457438125,-500.0,0.00014544,2]
[393315265,1762457438136,-209.03056356,0.00014544,2]
[393315267,1762457438146,-500.0,0.00014544,2]
[393315269,1762457438156,-217.95475558,0.00014544,2]
[393315271,1762457438165,-154.90666811,0.00014544,2]
[393315273,1762457438178,-71.28681944,0.00014544,2]
[393315275,1762457438187,-500.0,0.00014544,2]
[393315277,1762457438197,-500.0,0.00014544,2]
[393315279,1762457438207,-500.0,0.00014544,2]
[393315281,1762457438217,-500.0,0.00014544,2]
[393315283,1762457438226,-251.74327284,0.00014544,2]
[393315286,1762457438238,-248.25672716,0.00014544,2]
[393315288,1762457438247,-500.0,0.00014544,2]
[393315290,1762457438257,-500.0,0.00014544,2]
[393315291,1762457438265,-500.0,0.00014544,2]
[393315293,1762457438275,-500.0,0.00014544,2]
[393315296,1762457438284,-500.0,0.00014544,2]
[393315298,1762457438294,-500.0,0.00014544,2]
[393315300,1762457438304,-500.0,0.00014544,2]
[393315301,1762457438313,-517.85956899,0.00014544,2]
[393315303,1762457438322,-500.0,0.00014544,2]
[393315304,1762457438332,-275.22963519,0.00014544,2]
[393315306,1762457438343,-500.0,0.00014544,2]
[393315308,1762457438352,-500.0,0.00014544,2]
[393315310,1762457438362,-500.0,0.00014544,2]
[393315312,1762457438372,-500.0,0.00014544,2]
[393315314,1762457438381,-500.0,0.00014544,2]
[393315316,1762457438391,-500.0,0.00014544,2]
[393315318,1762457438400,-500.0,0.00014544,2]
[393315320,1762457438410,-235.48011993,0.00014544,2]
[393315322,1762457438419,-500.0,0.00014544,2]
[393315324,1762457438428,-111.1818545,0.00014544,2]
[393315326,1762457438438,-300.0,0.00014544,2]
[393315328,1762457438447,-300.0,0.00014544,2]
[393315330,1762457438457,-1200.0,0.00014544,2]
[393315332,1762457438467,-150.0,0.00014544,2]
[393315335,1762457438478,-1089.36771698,0.00014545,2]
[393315337,1762457438488,-48115.96930089,0.00014545,2]
[393315339,1762457438499,-500.0,0.0001455,2]
[393315341,1762457438509,-500.0,0.0001455,2]
[393315343,1762457438519,-500.0,0.00014551,2]
[393315345,1762457438530,-500.0,0.00014552,2]
[393315347,1762457438540,-500.0,0.00014552,2]
[393315349,1762457438549,-500.0,0.00014554,2]
[393315351,1762457438559,-500.0,0.00014554,2]
[393315353,1762457438569,-13311.73562333,0.00014566,2]
[393315501,1762457440270,-22885.99734468,0.00014566,2]
[393315607,1762457446486,-13542.96026655,0.00014566,2]
[393315608,1762457539944,-300.0,0.00014543,2]
[393315609,1762457539966,-499.99999999,0.00014544,2]
[393315610,1762457539987,-500.0,0.00014544,2]
[393315611,1762457540008,-500.0,0.00014544,2]
[393315612,1762457540036,-500.0,0.00014544,2]
[393315613,1762457540058,-500.0,0.00014544,2]
[393315614,1762457540079,-500.0,0.00014544,2]
[393315615,1762457540100,-500.0,0.00014544,2]
[393315616,1762457540122,-500.0,0.00014544,2]
[393315617,1762457540143,-500.0,0.00014544,2]
[393315618,1762457540166,-500.0,0.00014544,2]
[393315619,1762457540190,-500.0,0.00014544,2]
[393315620,1762457540212,-214.70609992,0.00014544,2]
[393315621,1762457540233,-94285.29390009,0.00014566,2]
[393315622,1762457542781,825.87,0.00015757,30]
[393315623,1762457545841,-1119.7,0.00025,30]
[393315625,1762457570494,5000.0,0.000185,3]
[393315626,1762457573785,-1000.0,0.00031,31]
[393315627,1762457573924,-1000.0,0.00033,33]
[393315628,1762457592665,2494.47541598,0.000185,3]
[393315629,1762457619660,488.79058101,0.00014464,2]
[393315631,1762457627645,1000.0,0.00032,120]
[393315633,1762458046171,500.0,0.00037204,60]
[393315634,1762458046611,500.0,0.00037204,60]
[393315635,1762458093329,665.34,0.00015414,30]
[393315637,1762458139847,1351.76105986,0.00014336,2]
[393315646,1762458424875,1917.38,0.00016976,3]
[393315647,1762458425259,3834.76,0.00018346,3]
[393315648,1762458435771,958.69,0.00016976,3]
[393315649,1762458436052,1917.38,0.00018346,3]
[393315650,1762458446912,479.34,0.00016976,3]
[393315651,1762458447087,958.68,0.00018346,3]
[393315652,1762458457741,239.67,0.00016976,3]
[393315653,1762458457803,479.34,0.00018346,3]
[393315654,1762458468348,719.05,0.00016976,3]
[393315754,1762458638235,-300.0,0.0001456,2]
[393315755,1762458638245,-300.0,0.0001456,2]
[393315756,1762458638254,-300.0,0.0001456,2]
[393315757,1762458638263,-300.0,0.0001456,2]
[393315758,1762458638273,-300.0,0.0001456,2]
[393315759,1762458638282,-1200.0,0.0001456,2]
[393315760,1762458638291,-358.46594306,0.0001456,2]
[393315761,1762458638301,-224.20661878,0.0001456,2]
[393315762,1762458638311,-419.46995947,0.0001456,2]
[393315763,1762458638320,-581.72001333,0.0001456,2]
[393315764,1762458638329,-579.41178888,0.0001456,2]
[393315765,1762458638339,-150.0,0.0001456,2]
[393315767,1762458638348,-5438.03359329,0.00014561,2]
[393315768,1762458638359,-1398.05128765,0.00014561,2]
[393315769,1762458638369,-0.63082587,0.00014566,2]
[393315770,1762458638380,-8335.55794086,0.00014566,2]
[393315771,1762458639197,1351.76105986,0.00014487,2]
[393315803,1762458640426,-383.16140013,0.00014566,2]
[393316023,1762458646717,-692.25170984,0.00014566,2]
[393316024,1762458646729,-295.13886484,0.00014566,2]
[393316025,1762458704731,153.01,0.00016976,3]
[393316026,1762458705104,306.02,0.00018346,3]
[393316027,1762458715560,459.07,0.00016976,3]
[393316028,1762458797973,2501.66529341,0.00014459,2]
[393316030,1762458867298,-300.0,0.00014558,2]
[393316031,1762458872334,500.0,0.00014558,2]
[393316032,1762458872364,500.0,0.00014558,2]
[393316033,1762458872392,500.0,0.00014558,2]
[393316034,1762458872436,249.11846531,0.00014558,2]
[393316035,1762458872472,459.88153469,0.00014558,2]
[393316036,1762459005480,10000.0,0.00037202,90]
[393316037,1762459044072,10000.0,0.00037202,90]
[393316038,1762459081994,10000.26,0.00037202,90]
[393316039,1762459146736,1351.76105986,0.00014336,2]
[393316040,1762459185773,2847.9486378,0.00014225,2]
[393316042,1762459350601,999.0,0.00013559,2]
[393316043,1762459434808,257.43381489,0.00014455,2]
[393316044,1762459490900,206.12381681,0.00014455,2]
[393316045,1762459551654,500.0,0.00037205,60]
[393316046,1762459552048,500.0,0.00037205,60]
[393316047,1762459552426,500.0,0.00037205,60]
[393316048,1762459552784,500.0,0.00037205,60]
[393316049,1762459553160,500.0,0.00037205,60]
[393316050,1762459553531,500.0,0.00037205,60]
[393316051,1762459553975,500.0,0.00037205,60]
[393316052,1762459554411,500.0,0.00037205,60]
[393316053,1762459554830,500.0,0.00037205,60]
[393316054,1762459555250,500.0,0.00037205,60]
[393316055,1762459555584,500.0,0.00037205,60]
[393316056,1762459555993,500.0,0.00037205,60]
[393316057,1762459556374,500.0,0.00037205,60]
[393316058,1762459556763,500.0,0.00037205,60]
[393316059,1762459557133,500.0,0.00037205,60]
[393316060,1762459557511,500.0,0.00037205,120]
[393316061,1762459557926,500.0,0.00037205,120]
[393316062,1762459558321,500.0,0.00037205,120]
[393316063,1762459558681,500.0,0.00037205,120]
[393316064,1762459559056,500.0,0.00037205,120]
[393316065,1762459559460,596.96509203,0.00037205,120]
[393316066,1762459629506,1351.76105986,0.00014469,2]
[393316117,1762459832621,-300.0,0.0001455,2]
[393316119,1762459832630,-300.0,0.0001455,2]
[393316121,1762459832639,-300.0,0.0001455,2]
[393316122,1762459832648,-300.0,0.0001455,2]
[393316123,1762459832658,-1200.0,0.0001455,2]
[393316124,1762459832667,-500.0,0.0001455,2]
[393316125,1762459832676,-632.72535124,0.0001455,2]
[393316126,1762459832685,-500.0,0.0001455,2]
[393316127,1762459832695,-500.0,0.0001455,2]
[393316128,1762459832704,-500.0,0.0001455,2]
[393316129,1762459832713,-500.0,0.0001455,2]
[393316130,1762459832722,-500.0,0.0001455,2]
[393316131,1762459832731,-500.0,0.0001455,2]
[393316132,1762459832740,-500.0,0.0001455,2]
[393316133,1762459832750,-500.0,0.0001455,2]
[393316134,1762459832759,-500.0,0.0001455,2]
[393316135,1762459832769,-500.0,0.0001455,2]
[393316136,1762459832778,-500.0,0.0001455,2]
[393316137,1762459832787,-500.0,0.0001455,2]
[393316138,1762459832796,-500.0,0.0001455,2]
[393316139,1762459832805,-500.0,0.0001455,2]
[393316140,1762459832815,-500.0,0.0001455,2]
[393316141,1762459832824,-439.88331422,0.0001455,2]
[393316142,1762459832835,-60.11668578,0.0001455,2]
[393316143,1762459832845,-509.43707467,0.0001455,2]
[393316144,1762459832854,-37.96123969,0.0001455,2]
[393316145,1762459832865,-462.03876031,0.0001455,2]
[393316146,1762459832874,-500.0,0.0001455,2]
[393316147,1762459832883,-500.0,0.0001455,2]
[393316148,1762459832893,-500.0,0.0001455,2]
[393316149,1762459832902,-500.0,0.0001455,2]
[393316150,1762459832911,-150.0,0.00014552,2]
[393316151,1762459832920,-151.0,0.00014553,2]
[393316152,1762459832930,-151.0,0.00014553,2]
[393316153,1762459832939,-151.5179089,0.00014553,2]
[393316154,1762459832948,-151.99056464,0.00014553,2]
[393316155,1762459832956,-151.0,0.00014553,2]
[393316156,1762459832965,-151.0,0.00014553,2]
[393316157,1762459832975,-181.00000003,0.00014553,2]
[393316158,1762459832984,-151.0,0.00014554,2]
[393316159,1762459832992,-151.0,0.00014554,2]
[393316160,1762459833002,-500.0,0.00014554,2]
[393316161,1762459833011,-151.0,0.00014554,2]
[393316162,1762459833020,-151.0,0.00014554,2]
[393316163,1762459833029,-151.0,0.00014554,2]
[393316164,1762459833038,-151.0,0.00014554,2]
[393316165,1762459833047,-151.0,0.00014554,2]
[393316166,1762459833057,-151.0,0.00014554,2]
[393316167,1762459833066,-151.66255476,0.00014554,2]
[393316168,1762459833075,-195.53526998,0.00014554,2]
[393316169,1762459833084,-151.0,0.00014554,2]
[393316170,1762459833094,-191.24671159,0.00014554,2]
[393316171,1762459833104,-219.12455009,0.00014554,2]
[393316172,1762459833113,-151.0,0.00014554,2]
[393316173,1762459833123,-151.0,0.00014554,2]
[393316174,1762459833133,-253.27182758,0.00014554,2]
[393316175,1762459833142,-151.07942237,0.00014554,2]
[393316176,1762459833151,-162.06945715,0.00014554,2]
[393316187,1762459838352,-282.80131849,0.0001455,2]
[393316188,1762459838365,-217.19868151,0.0001455,2]
[393316189,1762459838376,-500.0,0.0001455,2]
[393316190,1762459838388,-500.0,0.0001455,2]
[393316191,1762459838399,-500.0,0.0001455,2]
[393316192,1762459838411,-500.0,0.0001455,2]
[393316193,1762459838424,-500.0,0.0001455,2]
[393316194,1762459838434,-306.68166749,0.0001455,2]
[393316195,1762459838446,-193.31833251,0.0001455,2]
[393316196,1762459838457,-94.16845176,0.0001455,2]
[393316197,1762459838471,-405.83154824,0.0001455,2]
[393316198,1762459838483,-500.0,0.0001455,2]
[393316199,1762459838494,-500.0,0.0001455,2]
[393316200,1762459838506,-535.44765695,0.0001455,2]
[393316201,1762459838516,-500.0,0.0001455,2]
[393316202,1762459838526,-500.0,0.0001455,2]
[393316203,1762459838538,-500.0,0.0001455,2]
[393316204,1762459838548,-500.0,0.0001455,2]
[393316205,1762459838558,-500.0,0.0001455,2]
[393316206,1762459838568,-500.0,0.0001455,2]
[393316207,1762459838577,-500.0,0.0001455,2]
[393316208,1762459838588,-500.0,0.0001455,2]
[393316209,1762459838599,-500.0,0.0001455,2]
[393316210,1762459838610,-625.0,0.0001455,2]
[393316211,1762459838621,-500.0,0.0001455,2]
[393316212,1762459838631,-500.0,0.0001455,2]